fUSD/lending_fUSD_20240114
["ID","MTS","AMOUNT","RATE_DAILY","PERIOD"]
[311614337,1705265465579,-500.0,0.00030684,2]
[311614338,1705265465588,-500.0,0.00030684,2]
[311614339,1705265465602,-500.0,0.00030684,2]
[311614340,1705265465612,-244.80601792,0.00030684,2]
[311614341,1705265465621,-500.0,0.00030684,2]
[311614342,1705265465630,-500.0,0.00030684,2]
[311614343,1705265465640,-500.0,0.00030684,2]
[311614344,1705265465649,-500.0,0.00030684,2]
[311614345,1705265465659,-500.0,0.00030684,2]
[311614346,1705265465668,-607.16,0.00030684,2]
[311614347,1705265465678,-982.04,0.00030684,2]
[311614348,1705265465688,-500.0,0.00030684,2]
[311614349,1705265465697,-500.0,0.00030684,2]
[311614350,1705265465707,-600.07,0.00030684,2]
[311614351,1705265465717,-500.0,0.00030684,2]
[311614352,1705265465726,-500.0,0.00030684,2]
[311614353,1705265465738,-1048.4,0.00030684,2]
[311614354,1705265465748,-500.0,0.00030684,2]
[311614355,1705265465758,-950.82,0.00030684,2]
[311614356,1705265465768,-500.0,0.00030684,2]
[311614357,1705265465779,-500.0,0.00030684,2]
[311614358,1705265465789,-775.5,0.00030684,2]
[311614359,1705265465798,-500.0,0.00030684,2]
[311614360,1705265465808,-306.66669021,0.00030684,2]
[311614361,1705265465819,-806.58,0.00030684,2]
[311614362,1705265465828,-500.0,0.00030684,2]
[311614363,1705265465838,-500.0,0.00030684,2]
[311614364,1705265465848,-748.97,0.00030684,2]
[311614365,1705265465857,-500.0,0.00030684,2]
[311614366,1705265465867,-500.0,0.00030684,2]
[311614367,1705265465876,-500.0,0.00030684,2]
[311614368,1705265465886,-500.0,0.00030684,2]
[311614369,1705265465896,-500.0,0.00030684,2]
[311614370,1705265465906,-314.51956394,0.00030684,2]
[311614371,1705265465915,-544.49,0.00030684,2]
[311614372,1705265465925,-500.0,0.00030684,2]
[311614373,1705265465935,-500.0,0.00030684,2]
[311614374,1705265465944,-500.0,0.00030684,2]
[311614375,1705265465954,-300.3352946,0.00030684,2]
[311614376,1705265465964,-500.0,0.00030684,2]
[311614377,1705265465973,-671.61,0.00030684,2]
[311614378,1705265465983,-500.0,0.00030684,2]
[311614379,1705265465993,-500.0,0.00030684,2]
[311614380,1705265466002,-500.0,0.00030684,2]
[311614381,1705265466012,-500.0,0.00030684,2]
[311614382,1705265466021,-500.0,0.00030684,2]
[311614383,1705265466030,-500.0,0.00030684,2]
[311614384,1705265466039,-500.0,0.00030684,2]
[311614385,1705265466049,-582.89807217,0.00030684,2]
[311614386,1705265466059,-500.0,0.00030684,2]
[311614387,1705265466068,-602.2,0.00030684,2]
[311614388,1705265466077,-769.86,0.00030684,2]
[311614389,1705265466087,-500.0,0.00030684,2]
[311614390,1705265466096,-500.0,0.00030684,2]
[311614391,1705265466106,-500.0,0.00030684,2]
[311614392,1705265466115,-500.0,0.00030684,2]
[311614393,1705265466125,-500.0,0.00030684,2]
[311614394,1705265466135,-500.0,0.00030684,2]
[311614395,1705265466144,-500.0,0.00030684,2]
[311614396,1705265466154,-500.0,0.00030684,2]
[311614397,1705265466165,-500.0,0.00030684,2]
[311614398,1705265466176,-500.0,0.00030684,2]
[311614399,1705265466187,-500.0,0.00030684,2]
[311614400,1705265466198,-589.74630548,0.00030684,2]
[311614401,1705265466208,-500.0,0.00030684,2]
[311614402,1705265466219,-500.0,0.00030684,2]
[311614403,1705265466229,-692.82,0.00030684,2]
[311614404,1705265466238,-500.0,0.00030684,2]
[311614405,1705265466248,-507.31,0.00030684,2]
[311614406,1705265466258,-500.0,0.00030684,2]
[311614407,1705265466268,-500.0,0.00030684,2]
[311614408,1705265466277,-500.0,0.00030684,2]
[311614409,1705265466287,-500.0,0.00030684,2]
[311614410,1705265466296,-729.84,0.00030684,2]
[311614411,1705265466306,-536.68,0.00030684,2]
[311614412,1705265466315,-583.46,0.00030684,2]
[311614413,1705265466325,-500.0,0.00030684,2]
[311614414,1705265466335,-500.0,0.00030684,2]
[311614415,1705265466344,-500.0,0.00030684,2]
[311614416,1705265466354,-500.0,0.00030684,2]
[311614417,1705265466365,-500.0,0.00030684,2]
[311614418,1705265466375,-500.0,0.00030684,2]
[311614419,1705265466386,-500.0,0.00030684,2]
[311614420,1705265466395,-1000.1,0.00030684,2]
[311614421,1705265466405,-500.0,0.00030684,2]
[311614422,1705265466415,-500.0,0.00030684,2]
[311614423,1705265466425,-500.0,0.00030684,2]
[311614424,1705265466434,-500.0,0.00030684,2]
[311614425,1705265466444,-702.71,0.00030684,2]
[311614426,1705265466454,-500.0,0.00030684,2]
[311614427,1705265466463,-793.74,0.00030684,2]
[311614428,1705265466473,-500.0,0.00030684,2]
[311614429,1705265466482,-200.66836242,0.00030684,2]
[311614430,1705265466492,-500.0,0.00030684,2]
[311614431,1705265466502,-513.67310843,0.00030684,2]
[311614432,1705265466513,-500.0,0.00030684,2]
[311614433,1705265466523,-500.08715994,0.00030684,2]
[311614434,1705265466533,-500.0,0.00030684,2]
[311614435,1705265466543,-923.77,0.00030684,2]
[311614436,1705265466554,-500.0,0.00030684,2]
[311614437,1705265466564,-500.0,0.00030684,2]
[311614438,1705265466575,-629.36,0.00030684,2]
[311614439,1705265466585,-500.0,0.00030684,2]
[311614440,1705265466595,-500.0,0.00030684,2]
[311614441,1705265466606,-500.0,0.00030684,2]
[311614442,1705265466617,-867.3,0.00030684,2]
[311614443,1705265466627,-500.0,0.00030684,2]
[311614444,1705265466637,-500.0,0.00030684,2]
[311614445,1705265466647,-500.0,0.00030684,2]
[311614446,1705265466744,-250.0,0.00030684,2]
[311614447,1705265466754,-581.81,0.00030684,2]
[311614448,1705265466764,-624.05,0.00030684,2]
[311614449,1705265466774,-309.96687466,0.00030684,2]
[311614450,1705265466784,-830.39,0.00030684,2]
[311614451,1705265466794,-500.0,0.00030684,2]
[311614452,1705265466804,-500.0,0.00030684,2]
[311614453,1705265466815,-591.36568851,0.00030684,2]
[311614454,1705265466825,-677.4,0.00030684,2]
[311614455,1705265466836,-500.0,0.00030684,2]
[311614456,1705265466847,-500.0,0.00030684,2]
[311614457,1705265466857,-1100.99,0.00030684,2]
[311614458,1705265466870,-525.17,0.00030684,2]
[311614459,1705265466881,-500.0,0.00030684,2]
[311614460,1705265466892,-500.0,0.00030684,2]
[311614461,1705265466915,-505.37576698,0.00030684,2]
[311614462,1705265466928,-586.11,0.00030684,2]
[311614463,1705265466951,-605.69493334,0.00030684,2]
[311614464,1705265466966,-500.0,0.00030684,2]
[311614465,1705265466976,-500.0,0.00030684,2]
[311614466,1705265466986,-500.0,0.00030684,2]
[311614467,1705265467006,-1229.11,0.00030684,2]
[311614468,1705265467017,-500.0,0.00030684,2]
[311614469,1705265467028,-1106.76,0.00030684,2]
[311614470,1705265467038,-500.0,0.00030684,2]
[311614471,1705265467048,-500.0,0.00030684,2]
[311614472,1705265467058,-894.93,0.00030684,2]
[311614473,1705265467068,-608.9,0.00030684,2]
[311614474,1705265467081,-500.0,0.00030684,2]
[311614475,1705265467100,-946.64,0.00030684,2]
[311614476,1705265467120,-619.49,0.00030684,2]
[311614477,1705265467137,-500.0,0.00030684,2]
[311614478,1705265467149,-500.0,0.00030684,2]
[311614479,1705265467161,-868.77,0.00030684,2]
[311614480,1705265467180,-1000.0,0.00030684,2]
[311614481,1705265467207,-500.0,0.00030684,2]
[311614482,1705265467218,-500.0,0.00030684,2]
[311614483,1705265467236,-500.0,0.00030684,2]
[311614484,1705265467248,-500.0,0.00030684,2]
[311614485,1705265467265,-500.0,0.00030684,2]
[311614486,1705265467277,-500.0,0.00030684,2]
[311614487,1705265467293,-578.25,0.00030684,2]
[311614488,1705265467306,-500.0,0.00030684,2]
[311614489,1705265467318,-500.0,0.00030684,2]
[311614490,1705265467329,-500.0,0.00030684,2]
[311614491,1705265467353,-500.0,0.00030684,2]
[311614492,1705265467368,-532.95,0.00030684,2]
[311614493,1705265467394,-1204.84,0.00030684,2]
[311614494,1705265467408,-500.0,0.00030684,2]
[311614495,1705265467420,-500.0,0.00030684,2]
[311614496,1705265467430,-500.0,0.00030684,2]
[311614497,1705265467439,-500.0,0.00030684,2]
[311614498,1705265467448,-500.0,0.00030684,2]
[311614499,1705265467458,-545.29,0.00030684,2]
[311614500,1705265467468,-500.0,0.00030684,2]
[311614501,1705265467477,-670.63,0.00030684,2]
[311614502,1705265467487,-209.01725838,0.00030684,2]
[311614503,1705265467496,-523.04,0.00030684,2]
[311614504,1705265467505,-500.0,0.00030684,2]
[311614505,1705265467514,-500.0,0.00030684,2]
[311614506,1705265467524,-500.0,0.00030684,2]
[311614507,1705265467534,-500.0,0.00030684,2]
[311614508,1705265467543,-500.0,0.00030684,2]
[311614509,1705265467552,-636.75,0.00030684,2]
[311614510,1705265467561,-500.0,0.00030684,2]
[311614511,1705265467570,-500.0,0.00030684,2]
[311614512,1705265467580,-500.0,0.00030684,2]
[311614513,1705265467589,-596.02,0.00030684,2]
[311614514,1705265467598,-1015.13,0.00030684,2]
[311614515,1705265467608,-500.0,0.00030684,2]
[311614516,1705265467618,-500.0,0.00030684,2]
[311614517,1705265467627,-500.0,0.00030684,2]
[311614518,1705265467636,-851.16,0.00030684,2]
[311614519,1705265467646,-1744.35,0.00030684,2]
[311614520,1705265467655,-500.0,0.00030684,2]
[311614521,1705265467664,-500.0,0.00030684,2]
[311614522,1705265467673,-536.9,0.00030684,2]
[311614523,1705265467682,-846.45,0.00030684,2]
[311614524,1705265467692,-500.0,0.00030684,2]
[311614525,1705265467701,-500.0,0.00030684,2]
[311614526,1705265467710,-500.0,0.00030684,2]
[311614527,1705265467720,-607.07,0.00030684,2]
[311614528,1705265467734,-1022.21,0.00030684,2]
[311614529,1705265467743,-797.3,0.00030684,2]
[311614530,1705265467753,-500.0,0.00030684,2]
[311614531,1705265467762,-560.52,0.00030684,2]
[311614532,1705265467772,-1056.73,0.00030684,2]
[311614533,1705265467781,-500.0,0.00030684,2]
[311614534,1705265467791,-546.08,0.00030684,2]
[311614535,1705265467800,-1547.25,0.00030684,2]
[311614536,1705265467809,-715.62,0.00030684,2]
[311614537,1705265467820,-500.0,0.00030684,2]
[311614538,1705265467829,-1245.22,0.00030684,2]
[311614539,1705265467839,-500.0,0.00030684,2]
[311614540,1705265467849,-900.1,0.00030684,2]
[311614541,1705265467859,-500.0,0.00030684,2]
[311614542,1705265467869,-500.0,0.00030684,2]
[311614543,1705265467879,-500.0,0.00030684,2]
[311614544,1705265467889,-2718.67,0.00030684,2]
[311614545,1705265467899,-500.0,0.00030684,2]
[311614546,1705265467908,-500.0,0.00030684,2]
[311614547,1705265467919,-500.0,0.00030684,2]
[311614548,1705265467928,-679.75,0.00030684,2]
[311614549,1705265467938,-500.0,0.00030684,2]
[311614550,1705265467947,-1251.06,0.00030684,2]
[311614551,1705265467956,-650.18,0.00030684,2]
[311614552,1705265467966,-331.55743396,0.00030684,2]
[311614553,1705265467975,-500.0,0.00030684,2]
[311614554,1705265467984,-500.0,0.00030684,2]
[311614555,1705265467994,-983.25,0.00030684,2]
[311614556,1705265468003,-500.0,0.00030684,2]
[311614557,1705265468013,-500.0,0.00030684,2]
[311614558,1705265468023,-2249.92,0.00030684,2]
[311614559,1705265468032,-500.0,0.00030684,2]
[311614560,1705265468042,-595.82,0.00030684,2]
[311614561,1705265468051,-500.0,0.00030684,2]
[311614562,1705265468060,-500.0,0.00030684,2]
[311614563,1705265468069,-500.0,0.00030684,2]
[311614564,1705265468078,-500.0,0.00030684,2]
[311614565,1705265468087,-500.0,0.00030684,2]
[311614566,1705265468096,-1879.49,0.00030684,2]
[311614567,1705265468105,-979.35,0.00030684,2]
[311614568,1705265468115,-669.74,0.00030684,2]
[311614569,1705265468124,-629.35,0.00030684,2]
[311614570,1705265468133,-500.0,0.00030684,2]
[311614571,1705265468142,-500.0,0.00030684,2]
[311614572,1705265468151,-645.75,0.00030684,2]
[311614573,1705265468161,-905.95,0.00030684,2]
[311614574,1705265468170,-689.93,0.00030684,2]
[311614575,1705265468179,-500.0,0.00030684,2]
[311614576,1705265468188,-500.0,0.00030684,2]
[311614577,1705265468197,-658.52,0.00030684,2]
[311614578,1705265468206,-500.0,0.00030684,2]
[311614579,1705265468215,-500.0,0.00030684,2]
[311614580,1705265468223,-1000.92,0.00030684,2]
[311614581,1705265468233,-221.63173201,0.00030684,2]
[311614582,1705265468242,-361.81003657,0.00030684,2]
[311614583,1705265468251,-500.0,0.00030684,2]
[311614584,1705265468260,-584.45,0.00030684,2]
[311614585,1705265468270,-500.0,0.00030684,2]
[311614586,1705265468280,-500.0,0.00030684,2]
[311614587,1705265468290,-500.0,0.00030684,2]
[311614588,1705265468299,-500.0,0.00030684,2]
[311614589,1705265468308,-500.0,0.00030684,2]
[311614590,1705265468318,-500.0,0.00030684,2]
[311614591,1705265468328,-646.38,0.00030684,2]
[311614592,1705265468338,-596.4,0.00030684,2]
[311614593,1705265468347,-675.0,0.00030684,2]
[311614594,1705265468357,-886.22,0.00030684,2]
[311614595,1705265468367,-500.0,0.00030684,2]
[311614596,1705265468377,-679.48,0.00030684,2]
[311614597,1705265468386,-698.99,0.00030684,2]
[311614598,1705265468395,-567.27,0.00030684,2]
[311614599,1705265468404,-1207.58,0.00030684,2]
[311614600,1705265468414,-692.03,0.00030684,2]
[311614601,1705265468424,-4337.15,0.00030684,2]
[311614602,1705265468433,-1455.02,0.00030684,2]
[311614603,1705265468443,-500.0,0.00030684,2]
[311614604,1705265468452,-718.79,0.00030684,2]
[311614605,1705265468462,-500.0,0.00030684,2]
[311614606,1705265468472,-852.88,0.00030684,2]
[311614607,1705265468482,-500.0,0.00030684,2]
[311614608,1705265468492,-902.9,0.00030684,2]
[311614609,1705265468502,-500.0,0.00030684,2]
[311614610,1705265468511,-500.0,0.00030684,2]
[311614611,1705265468520,-500.0,0.00030684,2]
[311614612,1705265468530,-500.0,0.00030684,2]
[311614613,1705265468539,-500.0,0.00030684,2]
[311614614,1705265468548,-500.0,0.00030684,5]
[311614615,1705265468557,-500.0,0.00030684,2]
[311614616,1705265468566,-746.49,0.00030684,2]
[311614617,1705265468576,-317.82,0.00030684,2]
[311614618,1705265468585,-541.15,0.00030684,2]
[311614619,1705265468594,-500.0,0.00030684,2]
[311614620,1705265468603,-500.0,0.00030684,2]
[311614621,1705265468613,-500.0,0.00030684,2]
[311614622,1705265468623,-727.08,0.00030684,2]
[311614623,1705265468632,-500.0,0.00030684,2]
[311614624,1705265468642,-918.26,0.00030684,2]
[311614625,1705265468651,-7127.94,0.00030684,2]
[311614626,1705265468660,-2334.97,0.00030684,2]
[311614627,1705265468670,-571.94,0.00030684,2]
[311614628,1705265468679,-520.99,0.00030684,2]
[311614629,1705265468688,-500.0,0.00030684,2]
[311614630,1705265468697,-500.0,0.00030684,2]
[311614631,1705265468707,-500.0,0.00030684,2]
[311614632,1705265468716,-1278.08,0.00030684,2]
[311614633,1705265468726,-500.0,0.00030684,2]
[311614634,1705265468735,-1335.19,0.00030684,2]
[311614635,1705265468744,-500.0,0.00030684,2]
[311614636,1705265468754,-507.96,0.00030684,2]
[311614637,1705265468765,-500.0,0.00030684,2]
[311614638,1705265468774,-2191.12,0.00030684,2]
[311614639,1705265468784,-682.65,0.00030684,2]
[311614640,1705265468794,-1823.86,0.00030684,2]
[311614641,1705265468803,-500.0,0.00030684,2]
[311614642,1705265468812,-651.64,0.00030684,2]
[311614643,1705265468821,-566.33,0.00030684,2]
[311614644,1705265468830,-602.37,0.00030684,2]
[311614645,1705265468839,-883.91,0.00030684,2]
[311614646,1705265468848,-500.0,0.00030684,2]
[311614647,1705265468858,-500.0,0.00030684,2]
[311614648,1705265468868,-14316.0,0.00030684,2]
[311614649,1705265468877,-2214.32,0.00030684,2]
[311614650,1705265468885,-1750.64,0.00030684,2]
[311614651,1705265468895,-875.93,0.00030684,2]
[311614652,1705265468905,-500.0,0.00030684,2]
[311614653,1705265468914,-500.0,0.00030684,2]
[311614654,1705265468923,-500.0,0.00030684,2]
[311614655,1705265468932,-596.16,0.00030684,2]
[311614656,1705265468942,-846.65,0.00030684,2]
[311614657,1705265468952,-500.0,0.00030684,2]
[311614658,1705265468961,-500.0,0.00030684,2]
[311614659,1705265468970,-1849.03,0.00030684,2]
[311614660,1705265468980,-753.89,0.00030684,2]
[311614661,1705265468989,-500.0,0.00030684,2]
[311614662,1705265468999,-1112.66,0.00030684,2]
[311614663,1705265469008,-1725.14,0.00030684,2]
[311614664,1705265469017,-796.33,0.00030684,2]
[311614665,1705265469026,-500.0,0.00030684,2]
[311614666,1705265469035,-500.0,0.00030684,2]
[311614667,1705265469044,-899.24,0.00030684,2]
[311614668,1705265469053,-500.0,0.00030684,2]
[311614669,1705265469062,-808.86,0.00030684,2]
[311614670,1705265469071,-1429.98,0.00030684,2]
[311614671,1705265469080,-500.0,0.00030684,2]
[311614672,1705265469089,-500.0,0.00030684,2]
[311614673,1705265469098,-500.0,0.00030684,2]
[311614674,1705265469107,-524.71,0.00030684,2]
[311614675,1705265469116,-500.0,0.00030684,2]
[311614676,1705265469125,-1713.52,0.00030684,2]
[311614677,1705265469134,-1102.84,0.00030684,2]
[311614678,1705265469144,-1116.72,0.00030684,2]
[311614679,1705265469153,-1618.96,0.00030684,2]
[311614680,1705265469162,-500.0,0.00030684,2]
[311614681,1705265469171,-2696.94,0.00030684,2]
[311614682,1705265469181,-216.40363011,0.00030684,2]
[311614683,1705265469191,-794.76,0.00030684,2]
[311614684,1705265469200,-500.0,0.00030684,2]
[311614685,1705265469209,-500.0,0.00030684,2]
[311614686,1705265469219,-432.71077973,0.00030684,2]
[311614687,1705265469229,-724.53,0.00030684,2]
[311614688,1705265469239,-1597.13,0.00030684,2]
[311614689,1705265469248,-737.29,0.00030684,2]
[311614690,1705265469258,-622.57,0.00030684,2]
[311614691,1705265469267,-500.0,0.00030684,2]
[311614692,1705265469277,-1009.68,0.00030684,2]
[311614693,1705265469286,-500.0,0.00030684,2]
[311614694,1705265469296,-640.35,0.00030684,2]
[311614695,1705265469305,-500.0,0.00030684,2]
[311614696,1705265469315,-500.0,0.00030684,2]
[311614697,1705265469325,-500.0,0.00030684,2]
[311614698,1705265469334,-500.0,0.00030684,2]
[311614699,1705265469343,-500.0,0.00030684,2]
[311614700,1705265469353,-1595.29,0.00030684,2]
[311614701,1705265469364,-500.0,0.00030684,2]
[311614702,1705265469373,-500.0,0.00030684,2]
[311614703,1705265469383,-565.13,0.00030684,2]
[311614704,1705265469393,-917.26,0.00030684,2]
[311614705,1705265469401,-2100.41,0.00030684,2]
[311614706,1705265469412,-4300.16,0.00030684,2]
[311614707,1705265469421,-1007.56,0.00030684,2]
[311614708,1705265469431,-776.73,0.00030684,2]
[311614709,1705265469440,-500.0,0.00030684,2]
[311614710,1705265469449,-5057.58,0.00030684,2]
[311614711,1705265469459,-933.45,0.00030684,2]
[311614712,1705265469468,-500.0,0.00030684,2]
[311614713,1705265469477,-531.05,0.00030684,2]
[311614714,1705265469487,-500.0,0.00030684,2]
[311614715,1705265469497,-500.0,0.00030684,2]
[311614716,1705265469507,-720.02,0.00030684,2]
[311614717,1705265469516,-1593.77,0.00030684,2]
[311614718,1705265469526,-500.0,0.00030684,2]
[311614719,1705265469535,-500.0,0.00030684,5]
[311614720,1705265469545,-500.0,0.00030684,2]
[311614721,1705265469554,-500.0,0.00030684,2]
[311614722,1705265469563,-500.0,0.00030684,2]
[311614723,1705265469573,-4742.8,0.00030684,2]
[311614724,1705265469582,-1573.4,0.00030684,2]
[311614725,1705265469591,-305.58868232,0.00030684,2]
[311614726,1705265469600,-500.0,0.00030684,2]
[311614727,1705265469609,-332.22,0.00030684,2]
[311614728,1705265469619,-500.0,0.00030684,2]
[311614729,1705265469629,-500.0,0.00030684,2]
[311614730,1705265469638,-3392.17,0.00030684,2]
[311614731,1705265469647,-881.88,0.00030684,2]
[311614732,1705265469656,-3302.73,0.00030684,2]
[311614733,1705265469666,-755.87,0.00030684,2]
[311614734,1705265469675,-500.0,0.00030684,2]
[311614735,1705265469684,-1145.63,0.00030684,2]
[311614736,1705265469693,-500.0,0.00030684,2]
[311614737,1705265469703,-500.0,0.00030684,2]
[311614738,1705265469712,-500.0,0.00030684,2]
[311614739,1705265469722,-500.0,0.00030684,2]
[311614740,1705265469732,-3349.66,0.00030684,2]
[311614741,1705265469741,-500.0,0.00030684,2]
[311614742,1705265469750,-911.19,0.00030684,2]
[311614743,1705265469759,-699.61,0.00030684,2]
[311614744,1705265469770,-9373.54,0.00030684,2]
[311614745,1705265469779,-1446.11,0.00030684,2]
[311614746,1705265469788,-500.0,0.00030684,2]
[311614747,1705265469798,-563.79,0.00030684,2]
[311614748,1705265469807,-500.0,0.00030684,2]
[311614749,1705265469816,-1392.74,0.00030684,2]
[311614750,1705265469824,-500.0,0.00030684,2]
[311614751,1705265469834,-500.0,0.00030684,2]
[311614752,1705265469843,-500.0,0.00030684,2]
[311614753,1705265469853,-580.88,0.00030684,2]
[311614754,1705265469862,-1674.87,0.00030684,2]
[311614755,1705265469871,-9954.34,0.00030684,2]
[311614756,1705265469880,-2675.53,0.00030684,2]
[311614757,1705265469889,-638.69,0.00030684,2]
[311614758,1705265469899,-609.69,0.00030684,2]
[311614759,1705265469909,-500.0,0.00030684,2]
[311614760,1705265469917,-1402.19,0.00030684,2]
[311614761,1705265469926,-500.0,0.00030684,2]
[311614762,1705265469936,-5600.69,0.00030684,2]
[311614763,1705265469945,-541.21,0.00030684,2]
[311614764,1705265469954,-830.84,0.00030684,2]
[311614765,1705265469963,-500.0,0.00030684,2]
[311614766,1705265469972,-2246.95,0.00030684,2]
[311614767,1705265469981,-500.0,0.00030684,2]
[311614768,1705265469990,-500.0,0.00030684,2]
[311614769,1705265469999,-500.0,0.00030684,2]
[311614770,1705265470008,-3335.08,0.00030684,2]
[311614771,1705265470017,-924.51,0.00030684,2]
[311614772,1705265470026,-500.0,0.00030684,2]
[311614773,1705265470035,-10595.33,0.00030684,2]
[311614774,1705265470044,-500.0,0.00030684,2]
[311614775,1705265470053,-836.16,0.00030684,2]
[311614776,1705265470062,-500.0,0.00030684,2]
[311614777,1705265470071,-500.0,0.00030684,2]
[311614778,1705265470080,-500.0,0.00030684,2]
[311614779,1705265470089,-500.0,0.00030684,2]
[311614780,1705265470098,-646.01,0.00030684,2]
[311614781,1705265470107,-500.0,0.00030684,2]
[311614782,1705265470118,-500.0,0.00030684,2]
[311614783,1705265470127,-500.0,0.00030684,2]
[311614784,1705265470136,-500.0,0.00030684,2]
[311614785,1705265470145,-500.0,0.00030684,2]
[311614786,1705265470154,-500.0,0.00030684,2]
[311614787,1705265470163,-500.0,0.00030684,2]
[311614788,1705265470172,-500.0,0.00030684,2]
[311614789,1705265470181,-699.52,0.00030684,2]
[311614790,1705265470191,-1637.96,0.00030684,2]
[311614791,1705265470200,-3401.5,0.00030684,2]
[311614792,1705265470209,-500.0,0.00030684,2]
[311614793,1705265470217,-3225.32,0.00030684,2]
[311614794,1705265470227,-500.0,0.00030684,2]
[311614795,1705265470236,-500.0,0.00030684,2]
[311614796,1705265470245,-500.0,0.00030684,2]
[311614797,1705265470255,-500.0,0.00030684,2]
[311614798,1705265470264,-1658.41,0.00030684,2]
[311614799,1705265470273,-500.0,0.00030684,2]
[311614800,1705265470286,-898.47,0.00030684,2]
[311614801,1705265470295,-500.0,0.00030684,2]
[311614802,1705265470304,-747.38,0.00030684,2]
[311614803,1705265470319,-500.0,0.00030684,2]
[311614804,1705265470328,-502.0,0.00030684,2]
[311614805,1705265470338,-3294.26,0.00030684,2]
[311614806,1705265470350,-500.0,0.00030684,2]
[311614807,1705265470360,-781.12,0.00030684,2]
[311614808,1705265470370,-2934.21,0.00030684,2]
[311614809,1705265470381,-28330.08,0.00030684,2]
[311614810,1705265470391,-1324.02,0.00030684,2]
[311614811,1705265470401,-1385.96,0.00030684,2]
[311614812,1705265470410,-500.0,0.00030684,2]
[311614813,1705265470419,-509.43,0.00030684,2]
[311614814,1705265470428,-915.45,0.00030684,2]
[311614815,1705265470437,-2258.81,0.00030684,2]
[311614816,1705265470458,-500.0,0.00030684,2]
[311614817,1705265470469,-500.0,0.00030684,2]
[311614818,1705265470478,-993.95,0.00030684,2]
[311614819,1705265470488,-500.0,0.00030684,2]
[311614820,1705265470497,-630.07,0.00030684,2]
[311614821,1705265470506,-500.0,0.00030684,2]
[311614822,1705265470516,-500.0,0.00030684,2]
[311614823,1705265470529,-663.38,0.00030684,2]
[311614824,1705265470538,-534.75,0.00030684,2]
[311614825,1705265470547,-7238.69,0.00030684,2]
[311614826,1705265470556,-2077.72,0.00030684,2]
[311614827,1705265470566,-1376.21,0.00030684,2]
[311614828,1705265470575,-500.0,0.00030684,2]
[311614829,1705265470584,-1332.9,0.00030684,2]
[311614830,1705265470593,-500.0,0.00030684,2]
[311614831,1705265470602,-1108.32,0.00030684,2]
[311614832,1705265470611,-560.24,0.00030684,2]
[311614833,1705265470621,-500.0,0.00030684,2]
[311614834,1705265470630,-691.92,0.00030684,2]
[311614835,1705265470639,-500.0,0.00030684,2]
[311614836,1705265470647,-500.0,0.00030684,2]